BODY,BODY NAME,DATE,TRANSACTION NUMBER, AMOUNT ,SUPPLIER NAME,SUPPLIER ID,EXPENSE AREA,EXPENSE TYPE,EXPENSE CODE
http://statistics.data.gov.uk/id/local-authority/12UE,Huntingdonshire District Council,18/07/2013,552791,575,J S C Services,CR455778,Elections,Other Office Expenses,295
http://statistics.data.gov.uk/id/local-authority/12UE,Huntingdonshire District Council,25/07/2013,131528,"6,607.01",Computershare Vouchers Ltd,CR412205,Child Care Vouchers - Payroll,Deductions Paid To Third Party,26
http://statistics.data.gov.uk/id/local-authority/12UE,Huntingdonshire District Council,11/07/2013,130008,"4,038.48",Staffline Group,CR416827,Domestic Refuse,Hired Staff,100
http://statistics.data.gov.uk/id/local-authority/12UE,Huntingdonshire District Council,04/07/2013,129056,"3,870.68",Staffline Group,CR416827,Domestic Refuse,Hired Staff,100
http://statistics.data.gov.uk/id/local-authority/12UE,Huntingdonshire District Council,18/07/2013,130006,"3,370.14",Staffline Group,CR416827,Domestic Refuse,Hired Staff,100
http://statistics.data.gov.uk/id/local-authority/12UE,Huntingdonshire District Council,18/07/2013,130009,"2,952.07",Staffline Group,CR416827,Domestic Refuse,Hired Staff,100
http://statistics.data.gov.uk/id/local-authority/12UE,Huntingdonshire District Council,11/07/2013,130007,"2,778.59",Staffline Group,CR416827,Domestic Refuse,Hired Staff,100
http://statistics.data.gov.uk/id/local-authority/12UE,Huntingdonshire District Council,04/07/2013,129060,"2,516.94",Staffline Group,CR416827,Domestic Refuse,Hired Staff,100
http://statistics.data.gov.uk/id/local-authority/12UE,Huntingdonshire District Council,25/07/2013,130380,"2,229.70",Staffline Group,CR416827,Domestic Refuse,Hired Staff,100
http://statistics.data.gov.uk/id/local-authority/12UE,Huntingdonshire District Council,25/07/2013,130374,"2,044.84",Staffline Group,CR416827,Domestic Refuse,Hired Staff,100
http://statistics.data.gov.uk/id/local-authority/12UE,Huntingdonshire District Council,04/07/2013,129057,"1,406.66",Staffline Group,CR416827,Grounds Maintenance (Combined),Hired Staff,100
http://statistics.data.gov.uk/id/local-authority/12UE,Huntingdonshire District Council,11/07/2013,130017,"1,307.81",Staffline Group,CR416827,Grounds Maintenance (Combined),Hired Staff,100
http://statistics.data.gov.uk/id/local-authority/12UE,Huntingdonshire District Council,18/07/2013,130018,"1,162.22",Staffline Group,CR416827,Grounds Maintenance (Combined),Hired Staff,100
http://statistics.data.gov.uk/id/local-authority/12UE,Huntingdonshire District Council,25/07/2013,130377,"1,162.22",Staffline Group,CR416827,Grounds Maintenance (Combined),Hired Staff,100
http://statistics.data.gov.uk/id/local-authority/12UE,Huntingdonshire District Council,04/07/2013,130043,560.33,Lightning Recruitment,CR028184,Head Of Imd,Hired Staff,100
http://statistics.data.gov.uk/id/local-authority/12UE,Huntingdonshire District Council,11/07/2013,130447,560.33,Lightning Recruitment,CR028184,Head Of Imd,Hired Staff,100
http://statistics.data.gov.uk/id/local-authority/12UE,Huntingdonshire District Council,18/07/2013,130913,560.33,Lightning Recruitment,CR028184,Head Of Imd,Hired Staff,100
http://statistics.data.gov.uk/id/local-authority/12UE,Huntingdonshire District Council,25/07/2013,131385,560.33,Lightning Recruitment,CR028184,Head Of Imd,Hired Staff,100
http://statistics.data.gov.uk/id/local-authority/12UE,Huntingdonshire District Council,25/07/2013,131508,"3,182.50",Edrm Systems Ltd,CR416278,Helpdesk,Hired Staff,100
http://statistics.data.gov.uk/id/local-authority/12UE,Huntingdonshire District Council,25/07/2013,130338,"1,350.00",Premier It Recruitment Ltd,CR454029,Helpdesk,Hired Staff,100
http://statistics.data.gov.uk/id/local-authority/12UE,Huntingdonshire District Council,04/07/2013,129243,"1,008.00",Premier It Recruitment Ltd,CR454029,Helpdesk,Hired Staff,100
http://statistics.data.gov.uk/id/local-authority/12UE,Huntingdonshire District Council,11/07/2013,129534,"1,008.00",Premier It Recruitment Ltd,CR454029,Helpdesk,Hired Staff,100
http://statistics.data.gov.uk/id/local-authority/12UE,Huntingdonshire District Council,25/07/2013,130337,"1,008.00",Premier It Recruitment Ltd,CR454029,Helpdesk,Hired Staff,100
http://statistics.data.gov.uk/id/local-authority/12UE,Huntingdonshire District Council,04/07/2013,128287,756,Premier It Recruitment Ltd,CR454029,Helpdesk,Hired Staff,100
http://statistics.data.gov.uk/id/local-authority/12UE,Huntingdonshire District Council,18/07/2013,129979,756,Premier It Recruitment Ltd,CR454029,Helpdesk,Hired Staff,100
http://statistics.data.gov.uk/id/local-authority/12UE,Huntingdonshire District Council,25/07/2013,130336,666,Premier It Recruitment Ltd,CR454029,Helpdesk,Hired Staff,100
http://statistics.data.gov.uk/id/local-authority/12UE,Huntingdonshire District Council,25/07/2013,129978,540,Premier It Recruitment Ltd,CR454029,Helpdesk,Hired Staff,100
http://statistics.data.gov.uk/id/local-authority/12UE,Huntingdonshire District Council,18/07/2013,129609,974.14,James Andrews Recruitment,CR453753,Housing Management Units,Hired Staff,100
http://statistics.data.gov.uk/id/local-authority/12UE,Huntingdonshire District Council,25/07/2013,129617,974.14,James Andrews Recruitment,CR453753,Housing Management Units,Hired Staff,100
http://statistics.data.gov.uk/id/local-authority/12UE,Huntingdonshire District Council,25/07/2013,130138,974.14,James Andrews Recruitment,CR453753,Housing Management Units,Hired Staff,100
http://statistics.data.gov.uk/id/local-authority/12UE,Huntingdonshire District Council,04/07/2013,128282,881.99,James Andrews Recruitment,CR453753,Housing Management Units,Hired Staff,100
http://statistics.data.gov.uk/id/local-authority/12UE,Huntingdonshire District Council,11/07/2013,128699,875.41,James Andrews Recruitment,CR453753,Housing Management Units,Hired Staff,100
http://statistics.data.gov.uk/id/local-authority/12UE,Huntingdonshire District Council,25/07/2013,131508,837.5,Edrm Systems Ltd,CR416278,Imd Trading,Hired Staff,100
http://statistics.data.gov.uk/id/local-authority/12UE,Huntingdonshire District Council,18/07/2013,130079,732.6,Affinity Nationwide Support Services,CR482612,One Leisure St Ives,Hired Staff,100
http://statistics.data.gov.uk/id/local-authority/12UE,Huntingdonshire District Council,18/07/2013,130075,666,Affinity Nationwide Support Services,CR482612,One Leisure St Ives,Hired Staff,100
http://statistics.data.gov.uk/id/local-authority/12UE,Huntingdonshire District Council,18/07/2013,130481,532.8,Affinity Nationwide Support Services,CR482612,One Leisure St Ives,Hired Staff,100
http://statistics.data.gov.uk/id/local-authority/12UE,Huntingdonshire District Council,11/07/2013,130005,"2,812.72",Staffline Group,CR416827,Recycling,Hired Staff,100
http://statistics.data.gov.uk/id/local-authority/12UE,Huntingdonshire District Council,25/07/2013,130375,"2,275.20",Staffline Group,CR416827,Recycling,Hired Staff,100
http://statistics.data.gov.uk/id/local-authority/12UE,Huntingdonshire District Council,04/07/2013,129055,"2,098.87",Staffline Group,CR416827,Recycling,Hired Staff,100
http://statistics.data.gov.uk/id/local-authority/12UE,Huntingdonshire District Council,18/07/2013,130004,"1,643.83",Staffline Group,CR416827,Recycling,Hired Staff,100
http://statistics.data.gov.uk/id/local-authority/12UE,Huntingdonshire District Council,18/07/2013,130984,"1,113.60",Morgan Hunt Public Uk Ltd,CR415693,Revenue Services Mus,Hired Staff,100
http://statistics.data.gov.uk/id/local-authority/12UE,Huntingdonshire District Council,04/07/2013,129874,"1,065.60",Morgan Hunt Public Uk Ltd,CR415693,Revenue Services Mus,Hired Staff,100
http://statistics.data.gov.uk/id/local-authority/12UE,Huntingdonshire District Council,25/07/2013,131274,"1,065.60",Morgan Hunt Public Uk Ltd,CR415693,Revenue Services Mus,Hired Staff,100
http://statistics.data.gov.uk/id/local-authority/12UE,Huntingdonshire District Council,18/07/2013,130983,"1,058.40",Morgan Hunt Public Uk Ltd,CR415693,Revenue Services Mus,Hired Staff,100
http://statistics.data.gov.uk/id/local-authority/12UE,Huntingdonshire District Council,11/07/2013,130353,768,Morgan Hunt Public Uk Ltd,CR415693,Revenue Services Mus,Hired Staff,100
http://statistics.data.gov.uk/id/local-authority/12UE,Huntingdonshire District Council,25/07/2013,131275,729.6,Morgan Hunt Public Uk Ltd,CR415693,Revenue Services Mus,Hired Staff,100
http://statistics.data.gov.uk/id/local-authority/12UE,Huntingdonshire District Council,04/07/2013,129875,691.2,Morgan Hunt Public Uk Ltd,CR415693,Revenue Services Mus,Hired Staff,100
http://statistics.data.gov.uk/id/local-authority/12UE,Huntingdonshire District Council,11/07/2013,129260,"1,247.64",Venn Group Recruitment,CR415403,Revenue Services Mus,Hired Staff,100
http://statistics.data.gov.uk/id/local-authority/12UE,Huntingdonshire District Council,11/07/2013,130015,"1,077.14",Staffline Group,CR416827,Street Cleaning,Hired Staff,100
http://statistics.data.gov.uk/id/local-authority/12UE,Huntingdonshire District Council,18/07/2013,130016,975.25,Staffline Group,CR416827,Street Cleaning,Hired Staff,100
http://statistics.data.gov.uk/id/local-authority/12UE,Huntingdonshire District Council,25/07/2013,130379,841.82,Staffline Group,CR416827,Street Cleaning,Hired Staff,100
http://statistics.data.gov.uk/id/local-authority/12UE,Huntingdonshire District Council,11/07/2013,130013,756.5,Staffline Group,CR416827,Street Cleaning,Hired Staff,100
http://statistics.data.gov.uk/id/local-authority/12UE,Huntingdonshire District Council,18/07/2013,130014,676.87,Staffline Group,CR416827,Street Cleaning,Hired Staff,100
http://statistics.data.gov.uk/id/local-authority/12UE,Huntingdonshire District Council,04/07/2013,129059,671.18,Staffline Group,CR416827,Street Cleaning,Hired Staff,100
http://statistics.data.gov.uk/id/local-authority/12UE,Huntingdonshire District Council,04/07/2013,129058,538.57,Staffline Group,CR416827,Street Cleaning,Hired Staff,100
http://statistics.data.gov.uk/id/local-authority/12UE,Huntingdonshire District Council,25/07/2013,130378,538.57,Staffline Group,CR416827,Street Cleaning,Hired Staff,100
http://statistics.data.gov.uk/id/local-authority/12UE,Huntingdonshire District Council,25/07/2013,129674,"2,100.00",Cambridge Muslim Trust,CR455812,Equal Opportunities,Training - Professional,130
http://statistics.data.gov.uk/id/local-authority/12UE,Huntingdonshire District Council,25/07/2013,130959,538.8,Ld Events,CR480610,Housing Management Units,Training - Professional,130
http://statistics.data.gov.uk/id/local-authority/12UE,Huntingdonshire District Council,04/07/2013,130003,"1,188.00",Xchange Training Uk Ltd,CR455401,Planning M U'S,Training - Professional,130
http://statistics.data.gov.uk/id/local-authority/12UE,Huntingdonshire District Council,04/07/2013,128693,"2,510.00",Gilden Training,CR481057,Fleet Management,Training - Operational,131
http://statistics.data.gov.uk/id/local-authority/12UE,Huntingdonshire District Council,11/07/2013,128785,"1,188.00",Kelway (Uk) Ltd,CR004345,Head Of Imd,Training - I T,134
http://statistics.data.gov.uk/id/local-authority/12UE,Huntingdonshire District Council,11/07/2013,129248,594,Kelway (Uk) Ltd,CR004345,Head Of Imd,Training - I T,134
http://statistics.data.gov.uk/id/local-authority/12UE,Huntingdonshire District Council,25/07/2013,130136,570,Advanced Business Solutions,CR032921,Financial Services Mus,Training - Other,136
http://statistics.data.gov.uk/id/local-authority/12UE,Huntingdonshire District Council,25/07/2013,129661,960,Sdi,CR406453,Helpdesk,Training - Other,136
http://statistics.data.gov.uk/id/local-authority/12UE,Huntingdonshire District Council,04/07/2013,128436,522,Solace Enterprises,CR033610,Corporate Office Mus,Conferences,137
http://statistics.data.gov.uk/id/local-authority/12UE,Huntingdonshire District Council,25/07/2013,130959,538.8,Ld Events,CR480610,Dc Application Processing,Conferences,137
http://statistics.data.gov.uk/id/local-authority/12UE,Huntingdonshire District Council,18/07/2013,130998,"3,420.80",Jlt Speciality Ltd,CR480345,Insurance Premium Holding,Insurance Personal Accident,161
http://statistics.data.gov.uk/id/local-authority/12UE,Huntingdonshire District Council,18/07/2013,130999,"4,240.00",Jlt Speciality Ltd,CR480345,Insurance Premium Holding,Insurance Fidelity Guarantee,166
http://statistics.data.gov.uk/id/local-authority/12UE,Huntingdonshire District Council,04/07/2013,130158,790.92,Dell Computer Corporation,CR408320,Operations Mgt Units,Other I T Hardware,203
http://statistics.data.gov.uk/id/local-authority/12UE,Huntingdonshire District Council,25/07/2013,130342,873.02,Hedley Solutions Ltd,CR026816,One Leisure St Ives,Network Hardware,205
http://statistics.data.gov.uk/id/local-authority/12UE,Huntingdonshire District Council,04/07/2013,128636,"2,711.08",Khipu Networks Ltd,CR482348,Software Capital,Network Hardware,205
http://statistics.data.gov.uk/id/local-authority/12UE,Huntingdonshire District Council,18/07/2013,129896,"2,737.74",Advanced Business Solutions,CR032921,Financial Services,Software,206
http://statistics.data.gov.uk/id/local-authority/12UE,Huntingdonshire District Council,25/07/2013,129982,"8,235.10",Capax Discovery Ltd,CR480587,Helpdesk,Software,206
http://statistics.data.gov.uk/id/local-authority/12UE,Huntingdonshire District Council,11/07/2013,129246,"1,287.60",Eacs Ltd,CR404499,Helpdesk,Software,206
http://statistics.data.gov.uk/id/local-authority/12UE,Huntingdonshire District Council,11/07/2013,128625,"5,481.60",Astun Techynology Ltd,CR481143,Information Manager,Software,206
http://statistics.data.gov.uk/id/local-authority/12UE,Huntingdonshire District Council,04/07/2013,129250,"1,032.00",Socitm,CR403291,Information Manager,Software,206
http://statistics.data.gov.uk/id/local-authority/12UE,Huntingdonshire District Council,25/07/2013,130010,"18,282.00",Northgate Information Solutions Uk Ltd,CR028925,Revenue Services Mus,Software,206
http://statistics.data.gov.uk/id/local-authority/12UE,Huntingdonshire District Council,04/07/2013,129599,"4,200.00",Lexisnexis Visualfiles,CR455810,Software Capital,Software,206
http://statistics.data.gov.uk/id/local-authority/12UE,Huntingdonshire District Council,04/07/2013,129148,676.62,Konica Minolta Business Solutions East Ltd,CR478866,One Leisure St Ives,Other Office Equipment,209
http://statistics.data.gov.uk/id/local-authority/12UE,Huntingdonshire District Council,25/07/2013,131472,"1,150.00",Swan Print,CR413699,Leisure Development,Printing (External),220
http://statistics.data.gov.uk/id/local-authority/12UE,Huntingdonshire District Council,25/07/2013,131407,309.6,Bigprinting,CR416383,One Leisure Huntingdon,Printing (External),220
http://statistics.data.gov.uk/id/local-authority/12UE,Huntingdonshire District Council,11/07/2013,130421,120,Bigprinting,CR416383,One Leisure Huntingdon,Printing (External),220
http://statistics.data.gov.uk/id/local-authority/12UE,Huntingdonshire District Council,25/07/2013,131472,"1,186.70",Swan Print,CR413699,One Leisure Huntingdon,Printing (External),220
http://statistics.data.gov.uk/id/local-authority/12UE,Huntingdonshire District Council,25/07/2013,131407,309.6,Bigprinting,CR416383,One Leisure Ramsey,Printing (External),220
http://statistics.data.gov.uk/id/local-authority/12UE,Huntingdonshire District Council,11/07/2013,130421,120,Bigprinting,CR416383,One Leisure Ramsey,Printing (External),220
http://statistics.data.gov.uk/id/local-authority/12UE,Huntingdonshire District Council,25/07/2013,131472,978.5,Swan Print,CR413699,One Leisure Ramsey,Printing (External),220
http://statistics.data.gov.uk/id/local-authority/12UE,Huntingdonshire District Council,25/07/2013,131407,309.6,Bigprinting,CR416383,One Leisure Sawtry,Printing (External),220
http://statistics.data.gov.uk/id/local-authority/12UE,Huntingdonshire District Council,11/07/2013,130421,120,Bigprinting,CR416383,One Leisure Sawtry,Printing (External),220
http://statistics.data.gov.uk/id/local-authority/12UE,Huntingdonshire District Council,25/07/2013,131407,309.6,Bigprinting,CR416383,One Leisure St Ives,Printing (External),220
http://statistics.data.gov.uk/id/local-authority/12UE,Huntingdonshire District Council,11/07/2013,130421,141.6,Bigprinting,CR416383,One Leisure St Ives,Printing (External),220
http://statistics.data.gov.uk/id/local-authority/12UE,Huntingdonshire District Council,25/07/2013,131472,874.4,Swan Print,CR413699,One Leisure St Ives,Printing (External),220
http://statistics.data.gov.uk/id/local-authority/12UE,Huntingdonshire District Council,25/07/2013,131407,309.6,Bigprinting,CR416383,One Leisure St Neots,Printing (External),220
http://statistics.data.gov.uk/id/local-authority/12UE,Huntingdonshire District Council,11/07/2013,130421,120,Bigprinting,CR416383,One Leisure St Neots,Printing (External),220
http://statistics.data.gov.uk/id/local-authority/12UE,Huntingdonshire District Council,25/07/2013,131472,"1,186.70",Swan Print,CR413699,One Leisure St Neots,Printing (External),220
http://statistics.data.gov.uk/id/local-authority/12UE,Huntingdonshire District Council,04/07/2013,130058,600,Sabell & Co (B'Ham) Ltd,CR000712,Dc Application Processing,Stationery,225
http://statistics.data.gov.uk/id/local-authority/12UE,Huntingdonshire District Council,04/07/2013,128826,"1,668.11",Royal Mail,CR027083,Document Centre,Postage,231
http://statistics.data.gov.uk/id/local-authority/12UE,Huntingdonshire District Council,18/07/2013,129972,"1,398.80",Royal Mail,CR027083,Document Centre,Postage,231
http://statistics.data.gov.uk/id/local-authority/12UE,Huntingdonshire District Council,11/07/2013,129561,897.91,T N T Post London Ltd,CR479965,Document Centre,Postage,231
http://statistics.data.gov.uk/id/local-authority/12UE,Huntingdonshire District Council,18/07/2013,129971,"1,233.01",T N T Post London Ltd,CR479965,Document Centre,Postage,231
http://statistics.data.gov.uk/id/local-authority/12UE,Huntingdonshire District Council,25/07/2013,130410,"1,007.37",T N T Post London Ltd,CR479965,Document Centre,Postage,231
http://statistics.data.gov.uk/id/local-authority/12UE,Huntingdonshire District Council,04/07/2013,128830,818.18,T N T Post London Ltd,CR479965,Document Centre,Postage,231
http://statistics.data.gov.uk/id/local-authority/12UE,Huntingdonshire District Council,11/07/2013,129561,"1,334.57",T N T Post London Ltd,CR479965,Domestic Refuse,Postage,231
http://statistics.data.gov.uk/id/local-authority/12UE,Huntingdonshire District Council,18/07/2013,129971,666.93,T N T Post London Ltd,CR479965,Domestic Refuse,Postage,231
http://statistics.data.gov.uk/id/local-authority/12UE,Huntingdonshire District Council,25/07/2013,130410,291.8,T N T Post London Ltd,CR479965,Domestic Refuse,Postage,231
http://statistics.data.gov.uk/id/local-authority/12UE,Huntingdonshire District Council,18/07/2013,129972,42.31,Royal Mail,CR027083,Elections,Postage,231
http://statistics.data.gov.uk/id/local-authority/12UE,Huntingdonshire District Council,04/07/2013,129075,"1,191.94",Royal Mail,CR027083,Elections,Postage,231
http://statistics.data.gov.uk/id/local-authority/12UE,Huntingdonshire District Council,18/07/2013,129972,29.89,Royal Mail,CR027083,Electoral Registration,Postage,231
http://statistics.data.gov.uk/id/local-authority/12UE,Huntingdonshire District Council,18/07/2013,129971,73.31,T N T Post London Ltd,CR479965,Electoral Registration,Postage,231
http://statistics.data.gov.uk/id/local-authority/12UE,Huntingdonshire District Council,25/07/2013,130410,62.94,T N T Post London Ltd,CR479965,Electoral Registration,Postage,231
http://statistics.data.gov.uk/id/local-authority/12UE,Huntingdonshire District Council,11/07/2013,129561,286.81,T N T Post London Ltd,CR479965,Internal Services Holding,Postage,231
http://statistics.data.gov.uk/id/local-authority/12UE,Huntingdonshire District Council,18/07/2013,129562,"1,479.73",Royal Mail,CR027083,Revenue Services Mus,Postage,231
http://statistics.data.gov.uk/id/local-authority/12UE,Huntingdonshire District Council,11/07/2013,129561,718.41,T N T Post London Ltd,CR479965,Revenue Services Mus,Postage,231
http://statistics.data.gov.uk/id/local-authority/12UE,Huntingdonshire District Council,18/07/2013,129971,409.81,T N T Post London Ltd,CR479965,Revenue Services Mus,Postage,231
http://statistics.data.gov.uk/id/local-authority/12UE,Huntingdonshire District Council,25/07/2013,130410,892.93,T N T Post London Ltd,CR479965,Revenue Services Mus,Postage,231
http://statistics.data.gov.uk/id/local-authority/12UE,Huntingdonshire District Council,04/07/2013,128830,901.16,T N T Post London Ltd,CR479965,Revenue Services Mus,Postage,231
http://statistics.data.gov.uk/id/local-authority/12UE,Huntingdonshire District Council,04/07/2013,128792,"1,181.22",Virgin Media Business,CR033120,Helpdesk,Telephone Charges,240
http://statistics.data.gov.uk/id/local-authority/12UE,Huntingdonshire District Council,04/07/2013,128792,1.4,Virgin Media Business,CR033120,One Leisure Huntingdon,Telephone Charges,240
http://statistics.data.gov.uk/id/local-authority/12UE,Huntingdonshire District Council,11/07/2013,129129,684,Gladstone Mrm,CR405717,One Leisure Ramsey,Telephone Charges,240
http://statistics.data.gov.uk/id/local-authority/12UE,Huntingdonshire District Council,11/07/2013,129129,684,Gladstone Mrm,CR405717,One Leisure Sawtry,Telephone Charges,240
http://statistics.data.gov.uk/id/local-authority/12UE,Huntingdonshire District Council,11/07/2013,129129,684,Gladstone Mrm,CR405717,One Leisure St Neots,Telephone Charges,240
http://statistics.data.gov.uk/id/local-authority/12UE,Huntingdonshire District Council,04/07/2013,128498,"10,902.57",J Breheny Contractors Ltd,CR000314,Helpdesk,I T Line Rental,248
http://statistics.data.gov.uk/id/local-authority/12UE,Huntingdonshire District Council,04/07/2013,128792,"2,122.14",Virgin Media Business,CR033120,Helpdesk,I T Line Rental,248
http://statistics.data.gov.uk/id/local-authority/12UE,Huntingdonshire District Council,11/07/2013,130555,"7,109.59",Virgin Media Business/Cpsn,CR455148,Helpdesk,I T Line Rental,248
http://statistics.data.gov.uk/id/local-authority/12UE,Huntingdonshire District Council,25/07/2013,130588,"2,962.31",Vodafone Cable & Wireless,CR482316,Helpdesk,I T Line Rental,248
http://statistics.data.gov.uk/id/local-authority/12UE,Huntingdonshire District Council,18/07/2013,125516,"1,198.80",Vodafone Cable & Wireless,CR482316,Helpdesk,I T Line Rental,248
http://statistics.data.gov.uk/id/local-authority/12UE,Huntingdonshire District Council,04/07/2013,128792,20.7,Virgin Media Business,CR033120,Member Allowances & Support,I T Line Rental,248
http://statistics.data.gov.uk/id/local-authority/12UE,Huntingdonshire District Council,11/07/2013,129220,900,Marketing Force Limited,CR478596,Leisure Centres Overall,Advertising/Promoting Services,255
http://statistics.data.gov.uk/id/local-authority/12UE,Huntingdonshire District Council,04/07/2013,130102,504,Symmetry Dpm Ltd,CR453960,Leisure Centres Overall,Advertising/Promoting Services,255
http://statistics.data.gov.uk/id/local-authority/12UE,Huntingdonshire District Council,25/07/2013,130090,238.8,Awards For Business Ltd,CR455111,One Leisure Huntingdon,Advertising/Promoting Services,255
http://statistics.data.gov.uk/id/local-authority/12UE,Huntingdonshire District Council,11/07/2013,129233,300,East Anglia Design & Print Ltd,CR401203,One Leisure Huntingdon,Advertising/Promoting Services,255
http://statistics.data.gov.uk/id/local-authority/12UE,Huntingdonshire District Council,25/07/2013,130431,121.2,Leisure Database Company,CR479551,One Leisure Huntingdon,Advertising/Promoting Services,255
http://statistics.data.gov.uk/id/local-authority/12UE,Huntingdonshire District Council,11/07/2013,129220,600,Marketing Force Limited,CR478596,One Leisure Huntingdon,Advertising/Promoting Services,255
http://statistics.data.gov.uk/id/local-authority/12UE,Huntingdonshire District Council,11/07/2013,130595,213.6,Star 107.9/1,CR453808,One Leisure Huntingdon,Advertising/Promoting Services,255
http://statistics.data.gov.uk/id/local-authority/12UE,Huntingdonshire District Council,25/07/2013,130105,273.79,Uk Point Of Sale Group Ltd,CR478991,One Leisure Huntingdon,Advertising/Promoting Services,255
http://statistics.data.gov.uk/id/local-authority/12UE,Huntingdonshire District Council,25/07/2013,130090,238.8,Awards For Business Ltd,CR455111,One Leisure Ramsey,Advertising/Promoting Services,255
http://statistics.data.gov.uk/id/local-authority/12UE,Huntingdonshire District Council,25/07/2013,130431,121.2,Leisure Database Company,CR479551,One Leisure Ramsey,Advertising/Promoting Services,255
http://statistics.data.gov.uk/id/local-authority/12UE,Huntingdonshire District Council,11/07/2013,129220,300,Marketing Force Limited,CR478596,One Leisure Ramsey,Advertising/Promoting Services,255
http://statistics.data.gov.uk/id/local-authority/12UE,Huntingdonshire District Council,11/07/2013,130595,213.6,Star 107.9/1,CR453808,One Leisure Ramsey,Advertising/Promoting Services,255
http://statistics.data.gov.uk/id/local-authority/12UE,Huntingdonshire District Council,25/07/2013,130105,273.79,Uk Point Of Sale Group Ltd,CR478991,One Leisure Ramsey,Advertising/Promoting Services,255
http://statistics.data.gov.uk/id/local-authority/12UE,Huntingdonshire District Council,25/07/2013,130090,238.8,Awards For Business Ltd,CR455111,One Leisure Sawtry,Advertising/Promoting Services,255
http://statistics.data.gov.uk/id/local-authority/12UE,Huntingdonshire District Council,25/07/2013,130431,121.2,Leisure Database Company,CR479551,One Leisure Sawtry,Advertising/Promoting Services,255
http://statistics.data.gov.uk/id/local-authority/12UE,Huntingdonshire District Council,11/07/2013,129220,300,Marketing Force Limited,CR478596,One Leisure Sawtry,Advertising/Promoting Services,255
http://statistics.data.gov.uk/id/local-authority/12UE,Huntingdonshire District Council,11/07/2013,130595,213.6,Star 107.9/1,CR453808,One Leisure Sawtry,Advertising/Promoting Services,255
http://statistics.data.gov.uk/id/local-authority/12UE,Huntingdonshire District Council,25/07/2013,130105,273.8,Uk Point Of Sale Group Ltd,CR478991,One Leisure Sawtry,Advertising/Promoting Services,255
http://statistics.data.gov.uk/id/local-authority/12UE,Huntingdonshire District Council,25/07/2013,130090,238.8,Awards For Business Ltd,CR455111,One Leisure St Ives,Advertising/Promoting Services,255
http://statistics.data.gov.uk/id/local-authority/12UE,Huntingdonshire District Council,11/07/2013,129233,300,East Anglia Design & Print Ltd,CR401203,One Leisure St Ives,Advertising/Promoting Services,255
http://statistics.data.gov.uk/id/local-authority/12UE,Huntingdonshire District Council,25/07/2013,130431,121.2,Leisure Database Company,CR479551,One Leisure St Ives,Advertising/Promoting Services,255
http://statistics.data.gov.uk/id/local-authority/12UE,Huntingdonshire District Council,11/07/2013,129220,600,Marketing Force Limited,CR478596,One Leisure St Ives,Advertising/Promoting Services,255
http://statistics.data.gov.uk/id/local-authority/12UE,Huntingdonshire District Council,11/07/2013,130595,213.6,Star 107.9/1,CR453808,One Leisure St Ives,Advertising/Promoting Services,255
http://statistics.data.gov.uk/id/local-authority/12UE,Huntingdonshire District Council,25/07/2013,130105,273.79,Uk Point Of Sale Group Ltd,CR478991,One Leisure St Ives,Advertising/Promoting Services,255
http://statistics.data.gov.uk/id/local-authority/12UE,Huntingdonshire District Council,25/07/2013,130090,238.8,Awards For Business Ltd,CR455111,One Leisure St Neots,Advertising/Promoting Services,255
http://statistics.data.gov.uk/id/local-authority/12UE,Huntingdonshire District Council,11/07/2013,129233,294,East Anglia Design & Print Ltd,CR401203,One Leisure St Neots,Advertising/Promoting Services,255
http://statistics.data.gov.uk/id/local-authority/12UE,Huntingdonshire District Council,25/07/2013,130431,121.2,Leisure Database Company,CR479551,One Leisure St Neots,Advertising/Promoting Services,255
http://statistics.data.gov.uk/id/local-authority/12UE,Huntingdonshire District Council,11/07/2013,129220,600,Marketing Force Limited,CR478596,One Leisure St Neots,Advertising/Promoting Services,255
http://statistics.data.gov.uk/id/local-authority/12UE,Huntingdonshire District Council,11/07/2013,130595,213.6,Star 107.9/1,CR453808,One Leisure St Neots,Advertising/Promoting Services,255
http://statistics.data.gov.uk/id/local-authority/12UE,Huntingdonshire District Council,25/07/2013,130105,273.79,Uk Point Of Sale Group Ltd,CR478991,One Leisure St Neots,Advertising/Promoting Services,255
http://statistics.data.gov.uk/id/local-authority/12UE,Huntingdonshire District Council,11/07/2013,129995,628.99,Hunts Post,CR040030,Local Development Framework,Advertising - Statutory Notice,257
http://statistics.data.gov.uk/id/local-authority/12UE,Huntingdonshire District Council,11/07/2013,129998,554.4,Local World Ltd,CR000072,Local Development Framework,Advertising - Statutory Notice,257
http://statistics.data.gov.uk/id/local-authority/12UE,Huntingdonshire District Council,25/07/2013,131353,"151,337.52",Durman Stearn (Civil Engineering) Ltd,CR455055,Car Parks Capital,Building Construction,300
http://statistics.data.gov.uk/id/local-authority/12UE,Huntingdonshire District Council,25/07/2013,129921,"20,250.28",Graham,CR480029,Industrial Properties Capital,Building Construction,300
http://statistics.data.gov.uk/id/local-authority/12UE,Huntingdonshire District Council,25/07/2013,130905,"3,600.00",Building Services Design - Bsd,CR409263,Leisure Centres Capital,Building Construction,300
http://statistics.data.gov.uk/id/local-authority/12UE,Huntingdonshire District Council,11/07/2013,129480,516.11,Kershaw Contracting Services,CR001026,Countryside,Gen Building Mtce - Responsive,303
http://statistics.data.gov.uk/id/local-authority/12UE,Huntingdonshire District Council,18/07/2013,129524,510,Dal-Rod (Camridgeshire),CR413675,E F H And Depots,Gen Building Mtce - Responsive,303
http://statistics.data.gov.uk/id/local-authority/12UE,Huntingdonshire District Council,18/07/2013,129514,577.2,Craftsman Quality Lockers Ltd,CR410022,Leisure Centres Capital,Gen Building Mtce - Responsive,303
http://statistics.data.gov.uk/id/local-authority/12UE,Huntingdonshire District Council,11/07/2013,129271,596.84,N & C Glass Ltd,CR415450,Leisure Centres Capital,Gen Building Mtce - Responsive,303
http://statistics.data.gov.uk/id/local-authority/12UE,Huntingdonshire District Council,04/07/2013,129135,358.18,Roger Wilson Electronics,CR028041,Leisure Centres Capital,Gen Building Mtce - Responsive,303
http://statistics.data.gov.uk/id/local-authority/12UE,Huntingdonshire District Council,04/07/2013,129945,840.89,Roger Wilson Electronics,CR028041,One Leisure Huntingdon,Gen Building Mtce - Responsive,303
http://statistics.data.gov.uk/id/local-authority/12UE,Huntingdonshire District Council,04/07/2013,129977,278.4,L J Decorators Ltd,CR455429,One Leisure Ramsey,Gen Building Mtce - Responsive,303
http://statistics.data.gov.uk/id/local-authority/12UE,Huntingdonshire District Council,25/07/2013,129976,698.03,Roger Wilson Electronics,CR028041,One Leisure Ramsey,Gen Building Mtce - Responsive,303
http://statistics.data.gov.uk/id/local-authority/12UE,Huntingdonshire District Council,18/07/2013,130516,"1,101.66",Burgin Ltd,CR482438,One Leisure St Ives,Gen Building Mtce - Responsive,303
http://statistics.data.gov.uk/id/local-authority/12UE,Huntingdonshire District Council,18/07/2013,130518,837.71,Burgin Ltd,CR482438,One Leisure St Ives,Gen Building Mtce - Responsive,303
http://statistics.data.gov.uk/id/local-authority/12UE,Huntingdonshire District Council,25/07/2013,130083,660,Chris Robinson T/A Cr Design,CR416482,One Leisure St Ives,Gen Building Mtce - Responsive,303
http://statistics.data.gov.uk/id/local-authority/12UE,Huntingdonshire District Council,04/07/2013,129135,35.32,Roger Wilson Electronics,CR028041,One Leisure St Ives,Gen Building Mtce - Responsive,303
http://statistics.data.gov.uk/id/local-authority/12UE,Huntingdonshire District Council,04/07/2013,129261,"-1,404.29",Roger Wilson Electronics,CR028041,One Leisure St Ives,Gen Building Mtce - Responsive,303
http://statistics.data.gov.uk/id/local-authority/12UE,Huntingdonshire District Council,25/07/2013,130116,548.35,Chris Robinson T/A Cr Design,CR416482,One Leisure St Neots,Gen Building Mtce - Responsive,303
http://statistics.data.gov.uk/id/local-authority/12UE,Huntingdonshire District Council,11/07/2013,129270,"1,632.00",Lexicon Fire Systems Ltd,CR455703,Pathfinder House Site,Gen Building Mtce - Responsive,303
http://statistics.data.gov.uk/id/local-authority/12UE,Huntingdonshire District Council,04/07/2013,130132,"1,152.00",Zip Heaters Uk Ltd,CR478275,Pathfinder House Site,Gen Building Mtce - Responsive,303
http://statistics.data.gov.uk/id/local-authority/12UE,Huntingdonshire District Council,11/07/2013,129176,"1,188.00",Rsa Environmental Health Limited,CR482415,E F H And Depots,Gen Building Mtce - Planned,304
http://statistics.data.gov.uk/id/local-authority/12UE,Huntingdonshire District Council,25/07/2013,130343,813.97,Saltream,CR411219,Industrial Properties,Gen Building Mtce - Planned,304
http://statistics.data.gov.uk/id/local-authority/12UE,Huntingdonshire District Council,25/07/2013,131292,"340,217.69",R G Carter Peterborough,CR401511,Leisure Centres Capital,Gen Building Mtce - Planned,304
http://statistics.data.gov.uk/id/local-authority/12UE,Huntingdonshire District Council,25/07/2013,130490,510,Chris Robinson T/A Cr Design,CR416482,One Leisure Huntingdon,Gen Building Mtce - Planned,304
http://statistics.data.gov.uk/id/local-authority/12UE,Huntingdonshire District Council,04/07/2013,129944,"2,100.00",Dal-Rod Uk Ltd,CR002782,One Leisure Huntingdon,Gen Building Mtce - Planned,304
http://statistics.data.gov.uk/id/local-authority/12UE,Huntingdonshire District Council,04/07/2013,129977,"1,301.29",L J Decorators Ltd,CR455429,One Leisure Ramsey,Gen Building Mtce - Planned,304
http://statistics.data.gov.uk/id/local-authority/12UE,Huntingdonshire District Council,04/07/2013,129135,193.18,Roger Wilson Electronics,CR028041,One Leisure St Ives,Gen Building Mtce - Planned,304
http://statistics.data.gov.uk/id/local-authority/12UE,Huntingdonshire District Council,04/07/2013,129659,"2,555.53",L J Decorators Ltd,CR455429,One Leisure St Neots,Gen Building Mtce - Planned,304
http://statistics.data.gov.uk/id/local-authority/12UE,Huntingdonshire District Council,25/07/2013,130822,"4,500.00",Chesmetalwork,CR453817,Parks & Open Spaces,Gen Building Mtce - Planned,304
http://statistics.data.gov.uk/id/local-authority/12UE,Huntingdonshire District Council,04/07/2013,128501,"2,237.06",J Breheny Contractors Ltd,CR000314,Bus Stations,Sitework,359
http://statistics.data.gov.uk/id/local-authority/12UE,Huntingdonshire District Council,04/07/2013,128505,"3,404.81",J Breheny Contractors Ltd,CR000314,Car Park Assets,Sitework,359
http://statistics.data.gov.uk/id/local-authority/12UE,Huntingdonshire District Council,04/07/2013,128500,779.1,J Breheny Contractors Ltd,CR000314,Car Park Assets,Sitework,359
http://statistics.data.gov.uk/id/local-authority/12UE,Huntingdonshire District Council,04/07/2013,128499,"2,289.26",J Breheny Contractors Ltd,CR000314,Chief Executive & Comt,Sitework,359
http://statistics.data.gov.uk/id/local-authority/12UE,Huntingdonshire District Council,11/07/2013,129494,"3,600.00",Water-Lines Solutions,CR480225,Countryside,Sitework,359
http://statistics.data.gov.uk/id/local-authority/12UE,Huntingdonshire District Council,18/07/2013,129506,"1,634.36",Marney Hall Consultancy Limited,CR480342,Energy Efficiency,Sitework,359
http://statistics.data.gov.uk/id/local-authority/12UE,Huntingdonshire District Council,04/07/2013,128498,"6,339.58",J Breheny Contractors Ltd,CR000314,Helpdesk,Sitework,359
http://statistics.data.gov.uk/id/local-authority/12UE,Huntingdonshire District Council,04/07/2013,128496,"1,693.97",J Breheny Contractors Ltd,CR000314,Markets,Sitework,359
http://statistics.data.gov.uk/id/local-authority/12UE,Huntingdonshire District Council,18/07/2013,131066,"2,067.20",Anglian Water Services Ltd,CR415842,Miscellaneous Grants,Sitework,359
http://statistics.data.gov.uk/id/local-authority/12UE,Huntingdonshire District Council,04/07/2013,128502,618.53,J Breheny Contractors Ltd,CR000314,Parks & Open Spaces,Sitework,359
http://statistics.data.gov.uk/id/local-authority/12UE,Huntingdonshire District Council,18/07/2013,130021,708,Soft Surfaces,CR415861,Parks & Open Spaces,Playground Equipment,360
http://statistics.data.gov.uk/id/local-authority/12UE,Huntingdonshire District Council,11/07/2013,130502,"6,312.31",Burgin Ltd,CR482438,One Leisure Huntingdon,Plant & Equipment Maintenance,380
http://statistics.data.gov.uk/id/local-authority/12UE,Huntingdonshire District Council,11/07/2013,130498,"2,973.10",Burgin Ltd,CR482438,One Leisure Huntingdon,Plant & Equipment Maintenance,380
http://statistics.data.gov.uk/id/local-authority/12UE,Huntingdonshire District Council,11/07/2013,130499,826.64,Burgin Ltd,CR482438,One Leisure Huntingdon,Plant & Equipment Maintenance,380
http://statistics.data.gov.uk/id/local-authority/12UE,Huntingdonshire District Council,11/07/2013,129908,768,Pool Solutions Ltd,CR412070,One Leisure Sawtry,Plant & Equipment Maintenance,380
http://statistics.data.gov.uk/id/local-authority/12UE,Huntingdonshire District Council,04/07/2013,129212,"1,033.29",Chubb Fire Ltd,CR478924,One Leisure St Neots,Plant & Equipment Maintenance,380
http://statistics.data.gov.uk/id/local-authority/12UE,Huntingdonshire District Council,18/07/2013,129218,"2,724.13",White Commercial Surveyors Ltd,CR412242,Customer Service Centres,Rent,410
http://statistics.data.gov.uk/id/local-authority/12UE,Huntingdonshire District Council,25/07/2013,130924,504.34,Snacktime Vmi,CR482479,Operations Mgt Units,Service Charges,412
http://statistics.data.gov.uk/id/local-authority/12UE,Huntingdonshire District Council,18/07/2013,130964,790.02,E-On Energy,CR416430,C C T V,Electricity,420
http://statistics.data.gov.uk/id/local-authority/12UE,Huntingdonshire District Council,04/07/2013,129876,"1,091.65",Swalec,CR407130,Car Park Management,Electricity,420
http://statistics.data.gov.uk/id/local-authority/12UE,Huntingdonshire District Council,25/07/2013,131443,682.82,Swalec,CR407130,Car Park Management,Electricity,420
http://statistics.data.gov.uk/id/local-authority/12UE,Huntingdonshire District Council,11/07/2013,130363,566.2,Swalec,CR407130,Car Park Management,Electricity,420
http://statistics.data.gov.uk/id/local-authority/12UE,Huntingdonshire District Council,11/07/2013,130358,"2,162.38",E-On Energy,CR416430,E F H And Depots,Electricity,420
http://statistics.data.gov.uk/id/local-authority/12UE,Huntingdonshire District Council,25/07/2013,131376,"1,106.42",Swalec,CR407130,Housing Services Other,Electricity,420
http://statistics.data.gov.uk/id/local-authority/12UE,Huntingdonshire District Council,04/07/2013,128642,518.4,Edf Energy Customer Field Services,CR477611,One Leisure Huntingdon,Electricity,420
http://statistics.data.gov.uk/id/local-authority/12UE,Huntingdonshire District Council,11/07/2013,130356,"3,614.03",E-On Energy,CR416430,One Leisure Huntingdon,Electricity,420
http://statistics.data.gov.uk/id/local-authority/12UE,Huntingdonshire District Council,11/07/2013,130361,"1,027.56",Swalec,CR407130,One Leisure Huntingdon,Electricity,420
http://statistics.data.gov.uk/id/local-authority/12UE,Huntingdonshire District Council,25/07/2013,130977,"3,734.46",Swalec,CR407130,One Leisure Sawtry,Electricity,420
http://statistics.data.gov.uk/id/local-authority/12UE,Huntingdonshire District Council,25/07/2013,131374,"8,521.52",E-On Energy,CR416430,One Leisure St Ives,Electricity,420
http://statistics.data.gov.uk/id/local-authority/12UE,Huntingdonshire District Council,25/07/2013,130976,"2,027.96",E-On Energy,CR416430,One Leisure St Ives,Electricity,420
http://statistics.data.gov.uk/id/local-authority/12UE,Huntingdonshire District Council,25/07/2013,131518,"1,126.06",Anglian Water,CR000071,One Leisure St Neots,Electricity,420
http://statistics.data.gov.uk/id/local-authority/12UE,Huntingdonshire District Council,11/07/2013,130359,"8,019.97",E-On Energy,CR416430,One Leisure St Neots,Electricity,420
http://statistics.data.gov.uk/id/local-authority/12UE,Huntingdonshire District Council,11/07/2013,130404,"1,042.77",Swalec,CR407130,Parks & Open Spaces,Electricity,420
http://statistics.data.gov.uk/id/local-authority/12UE,Huntingdonshire District Council,25/07/2013,131444,995.12,Swalec,CR407130,Parks & Open Spaces,Electricity,420
http://statistics.data.gov.uk/id/local-authority/12UE,Huntingdonshire District Council,25/07/2013,131517,"-2,097.88",Swalec,CR407130,Parks & Open Spaces,Electricity,420
http://statistics.data.gov.uk/id/local-authority/12UE,Huntingdonshire District Council,11/07/2013,130357,"8,504.34",E-On Energy,CR416430,Pathfinder House Site,Electricity,420
http://statistics.data.gov.uk/id/local-authority/12UE,Huntingdonshire District Council,11/07/2013,129504,"-8,555.42",E-On Energy,CR416430,Pathfinder House Site,Electricity,420
http://statistics.data.gov.uk/id/local-authority/12UE,Huntingdonshire District Council,18/07/2013,130613,"4,405.07",E-On Energy,CR416430,One Leisure Huntingdon,Gas,421
http://statistics.data.gov.uk/id/local-authority/12UE,Huntingdonshire District Council,18/07/2013,130609,667.14,E-On Energy,CR416430,One Leisure Huntingdon,Gas,421
http://statistics.data.gov.uk/id/local-authority/12UE,Huntingdonshire District Council,18/07/2013,130606,"1,065.34",E-On Energy,CR416430,One Leisure Ramsey,Gas,421
http://statistics.data.gov.uk/id/local-authority/12UE,Huntingdonshire District Council,18/07/2013,130610,"1,290.07",E-On Energy,CR416430,One Leisure Sawtry,Gas,421
http://statistics.data.gov.uk/id/local-authority/12UE,Huntingdonshire District Council,18/07/2013,130605,"5,254.12",E-On Energy,CR416430,One Leisure St Ives,Gas,421
http://statistics.data.gov.uk/id/local-authority/12UE,Huntingdonshire District Council,18/07/2013,130612,"2,637.64",E-On Energy,CR416430,One Leisure St Neots,Gas,421
http://statistics.data.gov.uk/id/local-authority/12UE,Huntingdonshire District Council,18/07/2013,130604,556.15,E-On Energy,CR416430,Pathfinder House Site,Gas,421
http://statistics.data.gov.uk/id/local-authority/12UE,Huntingdonshire District Council,25/07/2013,131337,647.33,Awa Plc,CR409199,Countryside,Water,432
http://statistics.data.gov.uk/id/local-authority/12UE,Huntingdonshire District Council,11/07/2013,129616,"4,085.93",Anglian Water,CR000071,Housing Services Other,Water,432
http://statistics.data.gov.uk/id/local-authority/12UE,Huntingdonshire District Council,25/07/2013,131286,360.9,Anglian Water,CR000071,One Leisure Huntingdon,Water,432
http://statistics.data.gov.uk/id/local-authority/12UE,Huntingdonshire District Council,18/07/2013,130349,"4,990.28",Anglian Water,CR000071,One Leisure St Neots,Water,432
http://statistics.data.gov.uk/id/local-authority/12UE,Huntingdonshire District Council,25/07/2013,130345,"1,245.91",Nemco Utilities Ltd,CR409319,Parks & Open Spaces,Water,432
http://statistics.data.gov.uk/id/local-authority/12UE,Huntingdonshire District Council,25/07/2013,131286,396.99,Anglian Water,CR000071,One Leisure Huntingdon,Sewerage,433
http://statistics.data.gov.uk/id/local-authority/12UE,Huntingdonshire District Council,04/07/2013,128477,"1,038.00",Beebys Limited,CR415822,Bus Stations,Building Cleaning Internal,440
http://statistics.data.gov.uk/id/local-authority/12UE,Huntingdonshire District Council,11/07/2013,130170,"1,356.60",Ecocleen Services Limited,CR406985,E F H And Depots,Building Cleaning Internal,440
http://statistics.data.gov.uk/id/local-authority/12UE,Huntingdonshire District Council,04/07/2013,129953,"1,387.50",Ecocleen Services Limited,CR406985,One Leisure Huntingdon,Building Cleaning Internal,440
http://statistics.data.gov.uk/id/local-authority/12UE,Huntingdonshire District Council,25/07/2013,130525,"1,387.50",Ecocleen Services Limited,CR406985,One Leisure Huntingdon,Building Cleaning Internal,440
http://statistics.data.gov.uk/id/local-authority/12UE,Huntingdonshire District Council,25/07/2013,130417,"1,089.30",Ecocleen Services Limited,CR406985,One Leisure Sawtry,Building Cleaning Internal,440
http://statistics.data.gov.uk/id/local-authority/12UE,Huntingdonshire District Council,04/07/2013,128717,"4,441.20",Ecocleen Services Limited,CR406985,One Leisure St Ives,Building Cleaning Internal,440
http://statistics.data.gov.uk/id/local-authority/12UE,Huntingdonshire District Council,25/07/2013,130485,"1,750.19",Ecocleen Services Limited,CR406985,One Leisure St Ives,Building Cleaning Internal,440
http://statistics.data.gov.uk/id/local-authority/12UE,Huntingdonshire District Council,04/07/2013,130093,"-4,441.20",Ecocleen Services Limited,CR406985,One Leisure St Ives,Building Cleaning Internal,440
http://statistics.data.gov.uk/id/local-authority/12UE,Huntingdonshire District Council,25/07/2013,130115,"1,888.42",Ecocleen Services Limited,CR406985,One Leisure St Neots,Building Cleaning Internal,440
http://statistics.data.gov.uk/id/local-authority/12UE,Huntingdonshire District Council,25/07/2013,130168,"2,146.93",Ecocleen Services Limited,CR406985,Pathfinder House Site,Building Cleaning Internal,440
http://statistics.data.gov.uk/id/local-authority/12UE,Huntingdonshire District Council,25/07/2013,130166,"1,027.00",Ecocleen Services Limited,CR406985,Public Conveniences,Building Cleaning Internal,440
http://statistics.data.gov.uk/id/local-authority/12UE,Huntingdonshire District Council,25/07/2013,130169,658.1,Ecocleen Services Limited,CR406985,Public Conveniences,Building Cleaning Internal,440
http://statistics.data.gov.uk/id/local-authority/12UE,Huntingdonshire District Council,25/07/2013,130593,23.99,Booker Cash And Carry,CR027611,One Leisure St Ives,Cleaning Materials,443
http://statistics.data.gov.uk/id/local-authority/12UE,Huntingdonshire District Council,04/07/2013,128131,9,Booker Cash And Carry,CR027611,One Leisure St Ives,Cleaning Materials,443
http://statistics.data.gov.uk/id/local-authority/12UE,Huntingdonshire District Council,11/07/2013,129064,748.65,Maskearaid Ind Supplies,CR033423,Pathfinder House Site,Cleaning Materials,443
http://statistics.data.gov.uk/id/local-authority/12UE,Huntingdonshire District Council,04/07/2013,128584,"3,516.00",Nomix Enviro,CR002353,Street Cleaning,Cleaning Materials,443
http://statistics.data.gov.uk/id/local-authority/12UE,Huntingdonshire District Council,04/07/2013,129628,696,G4s Secure Solutions (Uk) Ltd,CR454030,One Leisure St Neots,Security,450
http://statistics.data.gov.uk/id/local-authority/12UE,Huntingdonshire District Council,04/07/2013,129629,696,G4s Secure Solutions (Uk) Ltd,CR454030,One Leisure St Neots,Security,450
http://statistics.data.gov.uk/id/local-authority/12UE,Huntingdonshire District Council,25/07/2013,130401,617.81,Air Liquide Uk Ltd,CR412121,Air Quality,Equipment Purchases,500
http://statistics.data.gov.uk/id/local-authority/12UE,Huntingdonshire District Council,04/07/2013,128503,252,J Breheny Contractors Ltd,CR000314,Car Park Assets,Equipment Purchases,500
http://statistics.data.gov.uk/id/local-authority/12UE,Huntingdonshire District Council,04/07/2013,128504,"4,200.00",J Breheny Contractors Ltd,CR000314,Chief Executive & Comt,Equipment Purchases,500
http://statistics.data.gov.uk/id/local-authority/12UE,Huntingdonshire District Council,04/07/2013,128503,684,J Breheny Contractors Ltd,CR000314,Chief Executive & Comt,Equipment Purchases,500
http://statistics.data.gov.uk/id/local-authority/12UE,Huntingdonshire District Council,18/07/2013,129175,"9,270.01",Systemslink 2000 Ltd,CR455718,Energy Efficiency,Equipment Purchases,500
http://statistics.data.gov.uk/id/local-authority/12UE,Huntingdonshire District Council,11/07/2013,130091,530.4,Escape Fitness,CR479121,Leisure Centres Capital,Equipment Purchases,500
http://statistics.data.gov.uk/id/local-authority/12UE,Huntingdonshire District Council,18/07/2013,129677,"4,581.82",Life Fitness Uk Ltd,CR004396,Leisure Centres Capital,Equipment Purchases,500
http://statistics.data.gov.uk/id/local-authority/12UE,Huntingdonshire District Council,25/07/2013,130077,"1,085.85",Nisbets,CR412311,Leisure Centres Capital,Equipment Purchases,500
http://statistics.data.gov.uk/id/local-authority/12UE,Huntingdonshire District Council,04/07/2013,128578,896.6,Aquafun,CR480237,One Leisure Huntingdon,Equipment Purchases,500
http://statistics.data.gov.uk/id/local-authority/12UE,Huntingdonshire District Council,11/07/2013,129439,"5,376.00",Garner Medical Ltd,CR003972,One Leisure Sawtry,Equipment Purchases,500
http://statistics.data.gov.uk/id/local-authority/12UE,Huntingdonshire District Council,04/07/2013,129273,"1,800.00",Ken Booth & Co,CR000305,One Leisure St Ives,Equipment Purchases,500
http://statistics.data.gov.uk/id/local-authority/12UE,Huntingdonshire District Council,04/07/2013,129135,334.8,Roger Wilson Electronics,CR028041,One Leisure St Ives,Equipment Purchases,500
http://statistics.data.gov.uk/id/local-authority/12UE,Huntingdonshire District Council,25/07/2013,130900,658.8,Roger Wilson Electronics,CR028041,One Leisure St Ives,Equipment Purchases,500
http://statistics.data.gov.uk/id/local-authority/12UE,Huntingdonshire District Council,18/07/2013,129646,624,Phs Group Ltd,CR032018,One Leisure St Neots,Equipment Purchases,500
http://statistics.data.gov.uk/id/local-authority/12UE,Huntingdonshire District Council,18/07/2013,130815,698.76,Edwards & Blake,CR479434,Restaurant,Equipment Purchases,500
http://statistics.data.gov.uk/id/local-authority/12UE,Huntingdonshire District Council,25/07/2013,130638,"3,425.92",Cale Briparc Ltd,CR401137,Car Park Management,Equipment Maintenance,511
http://statistics.data.gov.uk/id/local-authority/12UE,Huntingdonshire District Council,25/07/2013,130640,"3,425.92",Cale Briparc Ltd,CR401137,Car Park Management,Equipment Maintenance,511
http://statistics.data.gov.uk/id/local-authority/12UE,Huntingdonshire District Council,25/07/2013,130637,"-3,908.89",Cale Briparc Ltd,CR401137,Car Park Management,Equipment Maintenance,511
http://statistics.data.gov.uk/id/local-authority/12UE,Huntingdonshire District Council,25/07/2013,130846,852.99,Arthur Ibbett Ltd,CR000430,Countryside,Equipment Maintenance,511
http://statistics.data.gov.uk/id/local-authority/12UE,Huntingdonshire District Council,11/07/2013,129018,"8,115.41",Canon Uk Ltd,CR409013,Document Centre,Equipment Maintenance,511
http://statistics.data.gov.uk/id/local-authority/12UE,Huntingdonshire District Council,25/07/2013,130408,"1,988.24",Konica Minolta Business Solutions East Ltd,CR478866,Document Centre,Equipment Maintenance,511
http://statistics.data.gov.uk/id/local-authority/12UE,Huntingdonshire District Council,25/07/2013,126148,539.62,Ricoh Uk Ltd,CR477632,Document Centre,Equipment Maintenance,511
http://statistics.data.gov.uk/id/local-authority/12UE,Huntingdonshire District Council,25/07/2013,126170,-539.62,Ricoh Uk Ltd,CR477632,Document Centre,Equipment Maintenance,511
http://statistics.data.gov.uk/id/local-authority/12UE,Huntingdonshire District Council,25/07/2013,130369,900,Masternaut,CR416550,Fleet Management,Equipment Maintenance,511
http://statistics.data.gov.uk/id/local-authority/12UE,Huntingdonshire District Council,11/07/2013,129500,"1,125.60",Mis Fuel Monitoring Ltd,CR478577,Fleet Management,Equipment Maintenance,511
http://statistics.data.gov.uk/id/local-authority/12UE,Huntingdonshire District Council,25/07/2013,129898,"1,303.20",Hp Care Pack Sales,CR478055,Helpdesk,Equipment Maintenance,511
http://statistics.data.gov.uk/id/local-authority/12UE,Huntingdonshire District Council,04/07/2013,129202,577.25,Coolsparks Limited,CR455138,One Leisure Huntingdon,Equipment Maintenance,511
http://statistics.data.gov.uk/id/local-authority/12UE,Huntingdonshire District Council,18/07/2013,130550,924,Csl Group,CR406172,One Leisure Huntingdon,Equipment Maintenance,511
http://statistics.data.gov.uk/id/local-authority/12UE,Huntingdonshire District Council,11/07/2013,130084,"1,056.00",Technogym Uk Ltd,CR033037,One Leisure Huntingdon,Equipment Maintenance,511
http://statistics.data.gov.uk/id/local-authority/12UE,Huntingdonshire District Council,11/07/2013,130084,"1,056.00",Technogym Uk Ltd,CR033037,One Leisure Ramsey,Equipment Maintenance,511
http://statistics.data.gov.uk/id/local-authority/12UE,Huntingdonshire District Council,11/07/2013,130084,"1,056.00",Technogym Uk Ltd,CR033037,One Leisure Sawtry,Equipment Maintenance,511
http://statistics.data.gov.uk/id/local-authority/12UE,Huntingdonshire District Council,11/07/2013,130069,"1,696.76",Lynx Bowling Services,CR455532,One Leisure St Ives,Equipment Maintenance,511
http://statistics.data.gov.uk/id/local-authority/12UE,Huntingdonshire District Council,11/07/2013,130084,"1,056.00",Technogym Uk Ltd,CR033037,One Leisure St Ives,Equipment Maintenance,511
http://statistics.data.gov.uk/id/local-authority/12UE,Huntingdonshire District Council,11/07/2013,130084,"1,056.00",Technogym Uk Ltd,CR033037,One Leisure St Neots,Equipment Maintenance,511
http://statistics.data.gov.uk/id/local-authority/12UE,Huntingdonshire District Council,25/07/2013,131020,708.02,Technogym Uk Ltd,CR033037,One Leisure St Neots,Equipment Maintenance,511
http://statistics.data.gov.uk/id/local-authority/12UE,Huntingdonshire District Council,11/07/2013,128810,"10,020.00",Kelway (Uk) Ltd,CR004345,Software Capital,Equipment Maintenance,511
http://statistics.data.gov.uk/id/local-authority/12UE,Huntingdonshire District Council,11/07/2013,129590,716.4,Broxap Ltd,CR415958,Countryside,Litter Bins,520
http://statistics.data.gov.uk/id/local-authority/12UE,Huntingdonshire District Council,25/07/2013,131472,978.5,Swan Print,CR413699,One Leisure Sawtry,Litter Bins,520
http://statistics.data.gov.uk/id/local-authority/12UE,Huntingdonshire District Council,25/07/2013,130887,-777.6,Cale Briparc Ltd,CR401137,Car Park Management,Car Park Machines,522
http://statistics.data.gov.uk/id/local-authority/12UE,Huntingdonshire District Council,11/07/2013,129501,"34,679.23",Ssi Schaefer Ltd,CR407190,Recycling Equipment Capital,Recycling Bins,525
http://statistics.data.gov.uk/id/local-authority/12UE,Huntingdonshire District Council,25/07/2013,131329,"1,372.16",Bedford Timber Ltd,CR406479,Countryside,Materials,550
http://statistics.data.gov.uk/id/local-authority/12UE,Huntingdonshire District Council,11/07/2013,129588,"1,638.52",Huntingdon Timber Supplies,CR482513,Countryside,Materials,550
http://statistics.data.gov.uk/id/local-authority/12UE,Huntingdonshire District Council,11/07/2013,129630,"1,317.23",Madingley Mulch,CR409002,Countryside,Materials,550
http://statistics.data.gov.uk/id/local-authority/12UE,Huntingdonshire District Council,04/07/2013,129076,11.26,Booker Cash And Carry,CR027611,One Leisure Sawtry,Materials,550
http://statistics.data.gov.uk/id/local-authority/12UE,Huntingdonshire District Council,04/07/2013,128131,124.03,Booker Cash And Carry,CR027611,One Leisure St Ives,Materials,550
http://statistics.data.gov.uk/id/local-authority/12UE,Huntingdonshire District Council,25/07/2013,130559,247.53,Booker Cash And Carry,CR027611,One Leisure St Ives,Materials,550
http://statistics.data.gov.uk/id/local-authority/12UE,Huntingdonshire District Council,25/07/2013,130064,964.63,Milk Leisure Ltd,CR455268,One Leisure St Ives,Materials,550
http://statistics.data.gov.uk/id/local-authority/12UE,Huntingdonshire District Council,18/07/2013,129577,724.95,Brenntag Uk Ltd,CR015017,One Leisure Ramsey,Chemicals,551
http://statistics.data.gov.uk/id/local-authority/12UE,Huntingdonshire District Council,18/07/2013,130080,"1,383.55",Brenntag Uk Ltd,CR015017,One Leisure St Ives,Chemicals,551
http://statistics.data.gov.uk/id/local-authority/12UE,Huntingdonshire District Council,18/07/2013,129639,955.53,Brenntag Uk Ltd,CR015017,One Leisure St Neots,Chemicals,551
http://statistics.data.gov.uk/id/local-authority/12UE,Huntingdonshire District Council,18/07/2013,130383,"3,516.00",Nomix Enviro,CR002353,Street Cleaning,Chemicals,551
http://statistics.data.gov.uk/id/local-authority/12UE,Huntingdonshire District Council,25/07/2013,130371,808.5,Rigby Taylor Ltd,CR001345,Grounds Maintenance (Combined),Plants And Seeds,556
http://statistics.data.gov.uk/id/local-authority/12UE,Huntingdonshire District Council,25/07/2013,130372,-808.5,Rigby Taylor Ltd,CR001345,Grounds Maintenance (Combined),Plants And Seeds,556
http://statistics.data.gov.uk/id/local-authority/12UE,Huntingdonshire District Council,11/07/2013,130556,645.85,Heineken Uk Ltd,CR032678,One Leisure Huntingdon,Bar Provisions,558
http://statistics.data.gov.uk/id/local-authority/12UE,Huntingdonshire District Council,25/07/2013,130557,"1,366.19",Booker Cash And Carry,CR027611,One Leisure St Ives,Bar Provisions,558
http://statistics.data.gov.uk/id/local-authority/12UE,Huntingdonshire District Council,25/07/2013,130593,812.81,Booker Cash And Carry,CR027611,One Leisure St Ives,Bar Provisions,558
http://statistics.data.gov.uk/id/local-authority/12UE,Huntingdonshire District Council,04/07/2013,128131,567.16,Booker Cash And Carry,CR027611,One Leisure St Ives,Bar Provisions,558
http://statistics.data.gov.uk/id/local-authority/12UE,Huntingdonshire District Council,25/07/2013,130559,274.49,Booker Cash And Carry,CR027611,One Leisure St Ives,Bar Provisions,558
http://statistics.data.gov.uk/id/local-authority/12UE,Huntingdonshire District Council,25/07/2013,131298,"1,298.99",Heineken Uk Ltd,CR032678,One Leisure St Ives,Bar Provisions,558
http://statistics.data.gov.uk/id/local-authority/12UE,Huntingdonshire District Council,11/07/2013,130544,"1,078.60",Heineken Uk Ltd,CR032678,One Leisure St Ives,Bar Provisions,558
http://statistics.data.gov.uk/id/local-authority/12UE,Huntingdonshire District Council,11/07/2013,130540,"1,051.57",Heineken Uk Ltd,CR032678,One Leisure St Ives,Bar Provisions,558
http://statistics.data.gov.uk/id/local-authority/12UE,Huntingdonshire District Council,25/07/2013,131299,571.57,Heineken Uk Ltd,CR032678,One Leisure St Ives,Bar Provisions,558
http://statistics.data.gov.uk/id/local-authority/12UE,Huntingdonshire District Council,11/07/2013,129968,539.46,Booker Cash And Carry,CR027611,Countryside,Catering Materials,559
http://statistics.data.gov.uk/id/local-authority/12UE,Huntingdonshire District Council,04/07/2013,128653,732.66,King Bros,CR411339,Countryside,Catering Materials,559
http://statistics.data.gov.uk/id/local-authority/12UE,Huntingdonshire District Council,25/07/2013,130557,13.02,Booker Cash And Carry,CR027611,One Leisure St Ives,Catering Materials,559
http://statistics.data.gov.uk/id/local-authority/12UE,Huntingdonshire District Council,25/07/2013,130593,100.43,Booker Cash And Carry,CR027611,One Leisure St Ives,Catering Materials,559
http://statistics.data.gov.uk/id/local-authority/12UE,Huntingdonshire District Council,04/07/2013,128131,39.47,Booker Cash And Carry,CR027611,One Leisure St Ives,Catering Materials,559
http://statistics.data.gov.uk/id/local-authority/12UE,Huntingdonshire District Council,25/07/2013,130559,124.91,Booker Cash And Carry,CR027611,One Leisure St Ives,Catering Materials,559
http://statistics.data.gov.uk/id/local-authority/12UE,Huntingdonshire District Council,11/07/2013,129195,506.03,Glaxosmithkline,CR010424,One Leisure Huntingdon,Vending Materials,560
http://statistics.data.gov.uk/id/local-authority/12UE,Huntingdonshire District Council,04/07/2013,129076,507.62,Booker Cash And Carry,CR027611,One Leisure Sawtry,Vending Materials,560
http://statistics.data.gov.uk/id/local-authority/12UE,Huntingdonshire District Council,11/07/2013,129206,585.61,Glaxosmithkline,CR010424,One Leisure St Neots,Vending Materials,560
http://statistics.data.gov.uk/id/local-authority/12UE,Huntingdonshire District Council,04/07/2013,129204,734.62,Snackline Direct Ltd,CR478090,One Leisure St Neots,Vending Materials,560
http://statistics.data.gov.uk/id/local-authority/12UE,Huntingdonshire District Council,25/07/2013,131006,543.99,Snackline Direct Ltd,CR478090,One Leisure St Neots,Vending Materials,560
http://statistics.data.gov.uk/id/local-authority/12UE,Huntingdonshire District Council,11/07/2013,129558,"1,339.38",Masons Paper Co Ltd,CR001164,Document Centre,Paper,562
http://statistics.data.gov.uk/id/local-authority/12UE,Huntingdonshire District Council,11/07/2013,129072,616.8,Xerox Office Supplies,CR481184,Document Centre,Paper,562
http://statistics.data.gov.uk/id/local-authority/12UE,Huntingdonshire District Council,04/07/2013,128836,601.27,Xerox Office Supplies,CR481184,Document Centre,Paper,562
http://statistics.data.gov.uk/id/local-authority/12UE,Huntingdonshire District Council,11/07/2013,129968,6.94,Booker Cash And Carry,CR027611,Countryside,Materials For Resale,570
http://statistics.data.gov.uk/id/local-authority/12UE,Huntingdonshire District Council,04/07/2013,128751,659.34,Decleor Uk Ltd,CR480786,One Leisure St Neots,Materials For Resale,570
http://statistics.data.gov.uk/id/local-authority/12UE,Huntingdonshire District Council,04/07/2013,128795,"1,536.00",Franklins Group,CR478928,One Leisure St Ives,Badges And Certificates,571
http://statistics.data.gov.uk/id/local-authority/12UE,Huntingdonshire District Council,25/07/2013,130559,13.52,Booker Cash And Carry,CR027611,One Leisure St Ives,Confectionery,572
http://statistics.data.gov.uk/id/local-authority/12UE,Huntingdonshire District Council,18/07/2013,129545,594,New Forest Ice Cream Ltd,CR455804,One Leisure St Ives,Confectionery,572
http://statistics.data.gov.uk/id/local-authority/12UE,Huntingdonshire District Council,18/07/2013,131000,848,Jlt Speciality Ltd,CR480345,Community Services M Us,Vehicle Operating Lease,601
http://statistics.data.gov.uk/id/local-authority/12UE,Huntingdonshire District Council,18/07/2013,131000,424,Jlt Speciality Ltd,CR480345,Environmental Management,Vehicle Operating Lease,601
http://statistics.data.gov.uk/id/local-authority/12UE,Huntingdonshire District Council,18/07/2013,131000,"2,120.00",Jlt Speciality Ltd,CR480345,Fleet Management,Vehicle Operating Lease,601
http://statistics.data.gov.uk/id/local-authority/12UE,Huntingdonshire District Council,18/07/2013,131000,424,Jlt Speciality Ltd,CR480345,Managing Directors,Vehicle Operating Lease,601
http://statistics.data.gov.uk/id/local-authority/12UE,Huntingdonshire District Council,18/07/2013,131000,424,Jlt Speciality Ltd,CR480345,Planning M U'S,Vehicle Operating Lease,601
http://statistics.data.gov.uk/id/local-authority/12UE,Huntingdonshire District Council,25/07/2013,130824,516.24,Burnt Tree Group,CR480897,Domestic Refuse,Vehicle Hire,607
http://statistics.data.gov.uk/id/local-authority/12UE,Huntingdonshire District Council,04/07/2013,129993,"4,488.00",Riverside Truck Rental Ltd,CR411499,Domestic Refuse,Vehicle Hire,607
http://statistics.data.gov.uk/id/local-authority/12UE,Huntingdonshire District Council,04/07/2013,129992,"1,584.00",Riverside Truck Rental Ltd,CR411499,Domestic Refuse,Vehicle Hire,607
http://statistics.data.gov.uk/id/local-authority/12UE,Huntingdonshire District Council,18/07/2013,131000,"1,696.00",Jlt Speciality Ltd,CR480345,Fleet Management,Vehicle Hire,607
http://statistics.data.gov.uk/id/local-authority/12UE,Huntingdonshire District Council,18/07/2013,131000,"71,709.00",Jlt Speciality Ltd,CR480345,Insurance Premium Holding,Vehicle Insurance,610
http://statistics.data.gov.uk/id/local-authority/12UE,Huntingdonshire District Council,25/07/2013,130628,972.15,Euramka Promotions Ltd,CR001864,Grounds Maintenance (Combined),Petrol,614
http://statistics.data.gov.uk/id/local-authority/12UE,Huntingdonshire District Council,25/07/2013,130628,"1,286.97",Euramka Promotions Ltd,CR001864,Grounds Maintenance (Combined),Diesel,615
http://statistics.data.gov.uk/id/local-authority/12UE,Huntingdonshire District Council,25/07/2013,130802,"1,380.65",T C Harrison Ford,CR405072,Licences,Vehicle Inspection,618
http://statistics.data.gov.uk/id/local-authority/12UE,Huntingdonshire District Council,18/07/2013,130530,597.6,Thurlow Nunn Standen Ltd,CR001534,One Leisure St Ives,Vehicle Maintenance External,619
http://statistics.data.gov.uk/id/local-authority/12UE,Huntingdonshire District Council,04/07/2013,128623,"1,321.36",Dennis Eagle Ltd,CR000200,Domestic Refuse,Vehicle Parts & Fittings,625
http://statistics.data.gov.uk/id/local-authority/12UE,Huntingdonshire District Council,04/07/2013,128709,"1,005.00",Dennis Eagle Ltd,CR000200,Domestic Refuse,Vehicle Parts & Fittings,625
http://statistics.data.gov.uk/id/local-authority/12UE,Huntingdonshire District Council,11/07/2013,129478,553.69,Dennis Eagle Ltd,CR000200,Domestic Refuse,Vehicle Parts & Fittings,625
http://statistics.data.gov.uk/id/local-authority/12UE,Huntingdonshire District Council,18/07/2013,129651,"1,306.88",Marshall Motor Group,CR009641,Domestic Refuse,Vehicle Parts & Fittings,625
http://statistics.data.gov.uk/id/local-authority/12UE,Huntingdonshire District Council,18/07/2013,130011,"2,982.96",Staffline Group,CR416827,Domestic Refuse,Vehicle Parts & Fittings,625
http://statistics.data.gov.uk/id/local-authority/12UE,Huntingdonshire District Council,04/07/2013,129054,"2,077.85",Staffline Group,CR416827,Domestic Refuse,Vehicle Parts & Fittings,625
http://statistics.data.gov.uk/id/local-authority/12UE,Huntingdonshire District Council,25/07/2013,130376,"1,885.57",Staffline Group,CR416827,Domestic Refuse,Vehicle Parts & Fittings,625
http://statistics.data.gov.uk/id/local-authority/12UE,Huntingdonshire District Council,11/07/2013,130012,"1,722.02",Staffline Group,CR416827,Domestic Refuse,Vehicle Parts & Fittings,625
http://statistics.data.gov.uk/id/local-authority/12UE,Huntingdonshire District Council,04/07/2013,129499,645.35,Starmaker Welding Services,CR029912,Fleet Management,Vehicle Parts & Fittings,625
http://statistics.data.gov.uk/id/local-authority/12UE,Huntingdonshire District Council,11/07/2013,129100,"2,323.27",Terberg Matec Uk Ltd,CR402183,Fleet Management,Vehicle Parts & Fittings,625
http://statistics.data.gov.uk/id/local-authority/12UE,Huntingdonshire District Council,18/07/2013,129879,527.79,Ernest Doe & Sons,CR000261,Grounds Maintenance (Combined),Vehicle Parts & Fittings,625
http://statistics.data.gov.uk/id/local-authority/12UE,Huntingdonshire District Council,11/07/2013,129980,"1,154.40",M & N Vehicle Services,CR480661,Grounds Maintenance (Combined),Vehicle Parts & Fittings,625
http://statistics.data.gov.uk/id/local-authority/12UE,Huntingdonshire District Council,11/07/2013,129483,824.88,Johnston Engineering Ltd,CR029831,Street Cleaning,Vehicle Parts & Fittings,625
http://statistics.data.gov.uk/id/local-authority/12UE,Huntingdonshire District Council,18/07/2013,129981,"1,557.80",M & N Vehicle Services,CR480661,Street Cleaning,Vehicle Parts & Fittings,625
http://statistics.data.gov.uk/id/local-authority/12UE,Huntingdonshire District Council,11/07/2013,130054,431.45,Autoelec Cambs,CR480035,Domestic Refuse,Tyres,630
http://statistics.data.gov.uk/id/local-authority/12UE,Huntingdonshire District Council,25/07/2013,130055,"6,056.23",Bandvulc Tyres Ltd,CR406810,Domestic Refuse,Tyres,630
http://statistics.data.gov.uk/id/local-authority/12UE,Huntingdonshire District Council,11/07/2013,130054,169.74,Autoelec Cambs,CR480035,Grounds Maintenance (Combined),Tyres,630
http://statistics.data.gov.uk/id/local-authority/12UE,Huntingdonshire District Council,25/07/2013,130055,968.44,Bandvulc Tyres Ltd,CR406810,Recycling,Tyres,630
http://statistics.data.gov.uk/id/local-authority/12UE,Huntingdonshire District Council,11/07/2013,130054,355.32,Autoelec Cambs,CR480035,Street Cleaning,Tyres,630
http://statistics.data.gov.uk/id/local-authority/12UE,Huntingdonshire District Council,04/07/2013,129551,"1,150.00",Audit Commision,CR000237,External Audit,Audit Fees,701
http://statistics.data.gov.uk/id/local-authority/12UE,Huntingdonshire District Council,11/07/2013,128803,"1,238.12",Newlyn Plc,CR409114,Council Tax,Bailiffs,703
http://statistics.data.gov.uk/id/local-authority/12UE,Huntingdonshire District Council,11/07/2013,128993,"1,071.33",Newlyn Plc,CR409114,Council Tax,Bailiffs,703
http://statistics.data.gov.uk/id/local-authority/12UE,Huntingdonshire District Council,18/07/2013,129442,905.16,Newlyn Plc,CR409114,Council Tax,Bailiffs,703
http://statistics.data.gov.uk/id/local-authority/12UE,Huntingdonshire District Council,25/07/2013,130985,811.43,Newlyn Plc,CR409114,Council Tax,Bailiffs,703
http://statistics.data.gov.uk/id/local-authority/12UE,Huntingdonshire District Council,25/07/2013,129871,764.13,Newlyn Plc,CR409114,Council Tax,Bailiffs,703
http://statistics.data.gov.uk/id/local-authority/12UE,Huntingdonshire District Council,04/07/2013,128205,863.52,Newlyn Plc,CR409114,N N D R Administration,Bailiffs,703
http://statistics.data.gov.uk/id/local-authority/12UE,Huntingdonshire District Council,18/07/2013,129446,"1,665.00",Ramsay Todd Ltd,CR455673,Environmental Management,Consultants,711
http://statistics.data.gov.uk/id/local-authority/12UE,Huntingdonshire District Council,04/07/2013,129507,"2,485.18",Deloitte,CR416667,Estates Properties Capital,Consultants,711
http://statistics.data.gov.uk/id/local-authority/12UE,Huntingdonshire District Council,11/07/2013,130395,"2,400.00",Deloitte,CR416667,Estates Properties Capital,Consultants,711
http://statistics.data.gov.uk/id/local-authority/12UE,Huntingdonshire District Council,04/07/2013,129137,"4,800.00",Jlt Speciality Ltd,CR480345,Financial Services,Consultants,711
http://statistics.data.gov.uk/id/local-authority/12UE,Huntingdonshire District Council,04/07/2013,128798,"4,800.00",Barker Storey Matthews,CR400788,Financial Services Mus,Consultants,711
http://statistics.data.gov.uk/id/local-authority/12UE,Huntingdonshire District Council,18/07/2013,130994,"2,352.00",Rsa Environmental Health Limited,CR482415,Human Resources,Consultants,711
http://statistics.data.gov.uk/id/local-authority/12UE,Huntingdonshire District Council,18/07/2013,129605,"1,200.00",Richard Herrmann Assoc Ltd,CR403316,Industrial Properties,Consultants,711
http://statistics.data.gov.uk/id/local-authority/12UE,Huntingdonshire District Council,18/07/2013,131054,"10,164.26",Aecom,CR478307,Local Development Framework,Consultants,711
http://statistics.data.gov.uk/id/local-authority/12UE,Huntingdonshire District Council,18/07/2013,131056,"5,073.40",Aecom,CR478307,Local Development Framework,Consultants,711
http://statistics.data.gov.uk/id/local-authority/12UE,Huntingdonshire District Council,18/07/2013,131061,"4,142.26",Aecom,CR478307,Local Development Framework,Consultants,711
http://statistics.data.gov.uk/id/local-authority/12UE,Huntingdonshire District Council,25/07/2013,131065,"7,501.42",Deloitte Llp,CR400573,Local Development Framework,Consultants,711
http://statistics.data.gov.uk/id/local-authority/12UE,Huntingdonshire District Council,25/07/2013,131063,"5,240.70",Deloitte Llp,CR400573,Local Development Framework,Consultants,711
http://statistics.data.gov.uk/id/local-authority/12UE,Huntingdonshire District Council,04/07/2013,130059,"6,834.24",The Landscape Partnership,CR455142,Local Development Framework,Consultants,711
http://statistics.data.gov.uk/id/local-authority/12UE,Huntingdonshire District Council,25/07/2013,130001,"3,426.60",The Landscape Partnership,CR455142,Local Development Framework,Consultants,711
http://statistics.data.gov.uk/id/local-authority/12UE,Huntingdonshire District Council,18/07/2013,131058,"8,837.60",Aecom,CR478307,Property Development And Mgt,Consultants,711
http://statistics.data.gov.uk/id/local-authority/12UE,Huntingdonshire District Council,25/07/2013,130135,"1,020.00",Optevia Uk Ltd,CR455228,Software Capital,Consultants,711
http://statistics.data.gov.uk/id/local-authority/12UE,Huntingdonshire District Council,18/07/2013,131062,"4,728.00",Aecom,CR478307,Trees,Consultants,711
http://statistics.data.gov.uk/id/local-authority/12UE,Huntingdonshire District Council,25/07/2013,130622,603.36,Freeth Cartwright Llp,CR480787,Estates Properties Capital,Legal Fees,729
http://statistics.data.gov.uk/id/local-authority/12UE,Huntingdonshire District Council,18/07/2013,130436,"2,525.28",King Street Housing Society,CR409301,Accommodation For Homeless,Management Charge,733
http://statistics.data.gov.uk/id/local-authority/12UE,Huntingdonshire District Council,18/07/2013,130437,"1,701.31",King Street Housing Society,CR409301,Accommodation For Homeless,Management Charge,733
http://statistics.data.gov.uk/id/local-authority/12UE,Huntingdonshire District Council,25/07/2013,130141,"6,629.88",Luminus Homes,CR401276,Housing Services Other,Management Charge,733
http://statistics.data.gov.uk/id/local-authority/12UE,Huntingdonshire District Council,25/07/2013,131506,"1,536.96",Starlite Roadshow,CR024127,One Leisure St Ives,Entertainments Inc Cable Tv,744
http://statistics.data.gov.uk/id/local-authority/12UE,Huntingdonshire District Council,11/07/2013,129088,"2,368.66",Viridor Waste Management Ltd,CR482408,Recycling,Recycling Collections,747
http://statistics.data.gov.uk/id/local-authority/12UE,Huntingdonshire District Council,25/07/2013,130491,623.4,Biffa Waste Services Ltd,CR416469,One Leisure St Ives,Waste Disposal,763
http://statistics.data.gov.uk/id/local-authority/12UE,Huntingdonshire District Council,11/07/2013,129455,720,Dal-Rod Uk Ltd,CR002782,Nightsoil Collection,Subcontractors,777
http://statistics.data.gov.uk/id/local-authority/12UE,Huntingdonshire District Council,18/07/2013,130400,"12,960.00",Deloitte,CR416667,Financial Services Mus,Computer Audit,778
http://statistics.data.gov.uk/id/local-authority/12UE,Huntingdonshire District Council,25/07/2013,131280,"3,378.00",Cfl Estate Services,CR455208,Corporate Office Mus,Property Management,781
http://statistics.data.gov.uk/id/local-authority/12UE,Huntingdonshire District Council,04/07/2013,128458,"2,500.00",Care Network,CR477579,Miscellaneous Grants,Grants (Paid Out),800
http://statistics.data.gov.uk/id/local-authority/12UE,Huntingdonshire District Council,04/07/2013,128460,"4,750.00",Disability Information Service Huntingdonshir,CR408884,Miscellaneous Grants,Grants (Paid Out),800
http://statistics.data.gov.uk/id/local-authority/12UE,Huntingdonshire District Council,25/07/2013,131262,850.2,Portakabin Ltd,CR478566,Miscellaneous Grants,Grants (Paid Out),800
http://statistics.data.gov.uk/id/local-authority/12UE,Huntingdonshire District Council,04/07/2013,128461,"1,928.25",Cambridgeshire Acre,CR025674,Project Contributions,Grants (Paid Out),800
http://statistics.data.gov.uk/id/local-authority/12UE,Huntingdonshire District Council,25/07/2013,131524,"12,500.00",Hact,CR455657,Transportation Mgt,Grants (Paid Out),800
http://statistics.data.gov.uk/id/local-authority/12UE,Huntingdonshire District Council,11/07/2013,125796,"18,436.00",Metropolitan Support Trust,CR455293,Hostel Support,Hostel Revenue Support,817
http://statistics.data.gov.uk/id/local-authority/12UE,Huntingdonshire District Council,11/07/2013,130449,"2,646.00",Elephant & Castle Freehouse & Motel,CR401969,Accommodation For Homeless,Bed & Breakfast Payment,818
http://statistics.data.gov.uk/id/local-authority/12UE,Huntingdonshire District Council,18/07/2013,130948,"2,592.00",Elephant & Castle Freehouse & Motel,CR401969,Accommodation For Homeless,Bed & Breakfast Payment,818
http://statistics.data.gov.uk/id/local-authority/12UE,Huntingdonshire District Council,25/07/2013,131497,"2,160.00",Elephant & Castle Freehouse & Motel,CR401969,Accommodation For Homeless,Bed & Breakfast Payment,818
http://statistics.data.gov.uk/id/local-authority/12UE,Huntingdonshire District Council,04/07/2013,130146,"2,106.00",Elephant & Castle Freehouse & Motel,CR401969,Accommodation For Homeless,Bed & Breakfast Payment,818
